bitfinex-derivatives/quotes_BNBF0:USTF0_20250603
["timestamp","ask_amount","ask_price","bid_price","bid_amount"]
[1748919809853,0.89848298,669.55,668.69,0.29909225]
[1748919810055,1.243,669.56,668.69,0.29909225]
[1748919810056,0.89848298,669.54,668.69,0.29909225]
[1748919810253,1.36398928,669.53,668.69,0.29909225]
[1748919810457,0.89849151,669.52,668.69,0.29909225]
[1748919810656,1.243,669.56,668.69,0.29909225]
[1748919810657,0.8984897,669.51,668.69,0.29909225]
[1748919810859,1.243,669.56,668.69,0.29909225]
[1748919811063,0.46549011,669.55,668.69,0.29909225]
[1748919811366,1.243,669.56,668.69,0.29909225]
[1748919811661,0.87,669.55,668.69,0.29909225]
[1748919812463,0.46550377,669.54,668.69,0.29909225]
[1748919812760,0.46537499,669.53,668.69,0.29909225]
[1748919812960,0.46550377,669.54,668.69,0.29909225]
[1748919813261,0.89811202,669.52,668.69,0.29909225]
[1748919813456,0.46530246,669.51,668.69,0.29909225]
[1748919813660,0.89811202,669.52,668.69,0.29909225]
[1748919813859,0.46529195,669.51,668.69,0.29909225]
[1748919814062,0.89808514,669.51,668.69,0.29909225]
[1748919814856,0.89790581,669.5,668.69,0.29909225]
[1748919815061,1.062,669.49,668.69,0.29909225]
[1748919815562,0.46533853,669.48,668.69,0.29909225]
[1748919815963,1.062,669.49,668.69,0.29909225]
[1748919816165,0.89781316,669.48,668.69,0.29909225]
[1748919816461,1.062,669.49,668.69,0.29909225]
[1748919816961,0.89782806,669.48,668.69,0.29909225]
[1748919817156,0.89782806,669.47,668.69,0.29909225]
[1748919817355,1.062,669.49,668.69,0.29909225]
[1748919817757,0.89788528,669.48,668.69,0.29909225]
[1748919817961,1.062,669.49,668.69,0.29909225]
[1748919820359,1.36362836,669.48,668.69,0.29909225]
[1748919820556,0.46502996,669.47,668.69,0.29909225]
[1748919820757,1.062,669.49,668.69,0.29909225]
[1748919820961,0.89858721,669.48,668.69,0.29909225]
[1748919821165,1.36360747,669.47,668.69,0.29909225]
[1748919821357,2.093,669.48,668.69,0.29909225]
[1748919821555,1.36360373,669.47,668.69,0.29909225]
[1748919821763,2.093,669.48,668.69,0.29909225]
[1748919822161,0.46502151,669.47,668.69,0.29909225]
[1748919822357,0.46502161,669.46,668.69,0.29909225]
[1748919822662,0.89839318,669.45,668.69,0.29909225]
[1748919823560,1.36341676,669.44,668.69,0.29909225]
[1748919823864,0.89839318,669.45,668.69,0.29909225]
[1748919824059,1.36340785,669.44,668.69,0.29909225]
[1748919824266,0.89839318,669.45,668.69,0.29909225]
[1748919824467,1.561,669.43,668.69,0.29909225]
[1748919824862,0.89839573,669.42,668.69,0.29909225]
[1748919825166,1.561,669.43,668.69,0.29909225]
[1748919825360,0.89839437,669.42,668.69,0.29909225]
[1748919825562,1.36295859,669.41,668.69,0.29909225]
[1748919825760,1.561,669.43,668.69,0.29909225]
[1748919825967,1.36294515,669.42,668.69,0.29909225]
[1748919826261,0.89838771,669.41,668.69,0.29909225]
[1748919826660,0.46455956,669.4,668.69,0.29909225]
[1748919826861,0.89838771,669.41,668.69,0.29909225]
[1748919827361,1.03,669.4,668.69,0.29909225]
[1748919827565,0.89845426,669.39,668.69,0.29909225]
[1748919827765,1.36148324,669.38,668.69,0.29909225]
[1748919827965,1.03,669.4,668.69,0.29909225]
[1748919828468,0.89844846,669.39,668.69,0.29909225]
[1748919828764,1.03,669.4,668.69,0.29909225]
[1748919830561,0.46287656,669.39,668.69,0.29909225]
[1748919830763,0.46287216,669.38,668.69,0.29909225]
[1748919830966,1.03,669.4,668.69,0.29909225]
[1748919831865,1.36201767,669.39,668.69,0.29909225]
[1748919832170,0.89879748,669.38,668.69,0.29909225]
[1748919832369,1.36148218,669.37,668.69,0.29909225]
[1748919832569,1.03,669.4,668.69,0.29909225]
[1748919833072,0.89870943,669.39,668.69,0.29909225]
[1748919833263,1.03,669.4,668.69,0.29909225]
[1748919833464,0.46277549,669.39,668.69,0.29909225]
[1748919833665,1.79743373,669.38,668.69,0.29909225]
[1748919833869,1.82427041,669.37,668.69,0.29909225]
[1748919834071,1.36149374,669.37,668.69,0.29909225]
[1748919834270,0.46277547,669.36,668.69,0.29909225]
[1748919834471,1.36149374,669.37,668.69,0.29909225]
[1748919835065,0.89871418,669.36,668.69,0.29909225]
[1748919835263,1.36149374,669.37,668.69,0.29909225]
[1748919835468,0.89871433,669.36,668.69,0.29909225]
[1748919835664,0.46277516,669.35,668.69,0.29909225]
[1748919835868,0.46277395,669.34,668.69,0.29909225]
[1748919836171,1.36149374,669.37,668.69,0.29909225]
[1748919836472,0.89871173,669.36,668.69,0.29909225]
[1748919836863,0.46277519,669.35,668.69,0.29909225]
[1748919837069,0.46277475,669.34,668.69,0.29909225]
[1748919837267,0.89875441,669.33,668.69,0.29909225]
[1748919837472,0.89871173,669.36,668.69,0.29909225]
[1748919838472,0.46281852,669.35,668.69,0.29909225]
[1748919838673,0.89863545,669.34,668.69,0.29909225]
[1748919838971,0.89871173,669.36,668.69,0.29909225]
[1748919839368,0.89864284,669.35,668.69,0.29909225]
[1748919839564,0.89864321,669.34,668.69,0.29909225]
[1748919839765,0.89864284,669.35,668.69,0.29909225]
[1748919840366,0.89859872,669.34,668.69,0.29909225]
[1748919840572,0.89864284,669.35,668.69,0.29909225]
[1748919840774,0.89930516,669.33,668.69,0.29909225]
[1748919840972,0.89864284,669.35,668.69,0.29909225]
[1748919841372,1.36196155,669.34,668.69,0.29909225]
[1748919841570,1.36195848,669.33,668.69,0.29909225]
[1748919841776,0.89927869,669.33,668.69,0.29909225]
[1748919842070,0.46268414,669.32,668.69,0.29909225]
[1748919842272,0.89927869,669.33,668.69,0.29909225]
[1748919843272,0.89925554,669.32,668.69,0.29909225]
[1748919843473,0.89927869,669.33,668.69,0.29909225]
[1748919843867,0.89926614,669.32,668.69,0.29909225]
[1748919845070,1.36189401,669.31,668.69,0.29909225]
[1748919845370,0.89926614,669.32,668.69,0.29909225]
[1748919845775,0.89921532,669.31,668.69,0.29909225]
[1748919845971,1.79843974,669.3,668.69,0.29909225]
[1748919846178,0.46267468,669.29,668.69,0.29909225]
[1748919846372,0.89921874,669.3,668.69,0.29909225]
[1748919846970,0.8992104,669.29,668.69,0.29909225]
[1748919847173,1.131,669.29,668.69,0.29909225]
[1748919847574,0.89937341,669.28,668.69,0.29909225]
[1748919847773,0.46268852,669.27,668.69,0.29909225]
[1748919847971,1.131,669.29,668.69,0.29909225]
[1748919848678,0.89968808,669.28,668.69,0.29909225]
[1748919848880,1.131,669.29,668.69,0.29909225]
[1748919850173,0.8999172,669.28,668.69,0.29909225]
[1748919850379,0.90000876,669.27,668.69,0.29909225]
[1748919850580,0.90000853,669.26,668.69,0.29909225]
[1748919850777,0.90000906,669.25,668.69,0.29909225]
[1748919850976,1.131,669.29,668.69,0.29909225]
[1748919851178,0.90091921,669.28,668.69,0.29909225]
[1748919851378,1.131,669.29,668.69,0.29909225]
[1748919851773,0.9009186,669.28,668.69,0.29909225]
[1748919851977,0.90091968,669.27,668.69,0.29909225]
[1748919852177,1.131,669.29,668.69,0.29909225]
[1748919852575,0.90092168,669.28,668.69,0.29909225]
[1748919852780,1.131,669.29,668.69,0.29909225]
[1748919853279,0.90092072,669.28,668.69,0.29909225]
[1748919853477,1.131,669.29,668.69,0.29909225]
[1748919853681,0.90092509,669.28,668.69,0.29909225]
[1748919853881,1.131,669.29,668.69,0.29909225]
[1748919854876,0.90092273,669.28,668.69,0.29909225]
[1748919855080,1.131,669.29,668.69,0.29909225]
[1748919855483,0.90119325,669.28,668.69,0.29909225]
[1748919855676,0.90119325,669.27,668.69,0.29909225]
[1748919855877,1.131,669.29,668.69,0.29909225]
[1748919856483,0.90120771,669.28,668.69,0.29909225]
[1748919856683,0.90120771,669.27,668.69,0.29909225]
[1748919856880,1.131,669.29,668.69,0.29909225]
[1748919857587,0.90118536,669.28,668.69,0.29909225]
[1748919857785,0.90118536,669.27,668.69,0.29909225]
[1748919857984,1.131,669.29,668.69,0.29909225]
[1748919859294,1.80243761,669.28,668.69,0.29909225]
[1748919859481,0.90125359,669.27,668.69,0.29909225]
[1748919859785,1.80243761,669.28,668.69,0.29909225]
[1748919859986,0.90128074,669.27,668.69,0.29909225]
[1748919860181,0.90129654,669.26,668.69,0.29909225]
[1748919860386,1.80243761,669.28,668.69,0.29909225]
[1748919860582,0.90132417,669.27,668.69,0.29909225]
[1748919860787,0.9013188,669.26,668.69,0.29909225]
[1748919860986,1.80243761,669.28,668.69,1.41236025]
[1748919861587,1.80243761,669.28,668.7,1.113268]
[1748919861588,0.90135467,669.27,668.7,1.113268]
[1748919861889,1.80243761,669.28,668.71,1.4123513]
[1748919862084,1.80243761,669.28,668.72,1.41234683]
[1748919862390,1.80243761,669.28,668.73,0.29907436]
[1748919862691,1.80243761,669.28,668.78,1.113268]
[1748919862890,1.80243761,669.28,668.79,0.29904753]
[1748919863891,0.90207553,669.27,668.79,0.29904753]
[1748919864488,0.90207971,669.26,668.79,0.29904753]
[1748919865283,0.90207983,669.25,668.79,0.29904753]
[1748919865794,0.90207971,669.26,668.79,0.29904753]
[1748919900529,0.90267683,669.25,668.79,0.29904753]
[1748919900730,0.90267697,669.24,668.79,0.29904753]
[1748919901028,0.90207971,669.26,668.79,0.29904753]
[1748919901831,0.90258275,669.25,668.79,0.29904753]
[1748919902032,0.90207971,669.26,668.79,0.29904753]
[1748919902033,0.90258433,669.24,668.79,0.29904753]
[1748919902228,0.90207971,669.26,668.79,0.29904753]
[1748919902928,0.90258537,669.25,668.79,0.29904753]
[1748919903127,0.90207971,669.26,668.79,0.29904753]
[1748919903527,0.90259093,669.25,668.79,0.29904753]
[1748919904132,0.90260752,669.24,668.79,0.29904753]
[1748919904333,0.90259093,669.25,668.79,0.29904753]
[1748919904535,1.80544777,669.24,668.79,0.29904753]
[1748919904830,0.90272437,669.24,668.79,0.29904753]
[1748919905335,0.90289644,669.23,668.79,0.29904753]
[1748919905633,0.90272437,669.24,668.79,0.29904753]
[1748919905828,0.90291123,669.23,668.79,0.29904753]
[1748919906029,0.90291185,669.22,668.79,0.29904753]
[1748919906227,0.90272437,669.24,668.79,0.29904753]
[1748919906634,0.90291331,669.23,668.79,0.29904753]
[1748919906835,0.90272437,669.24,668.79,0.29904753]
[1748919907237,0.9029105,669.23,668.79,0.29904753]
[1748919907438,0.90272437,669.24,668.79,0.29904753]
[1748919908334,0.90244717,669.23,668.79,0.29904753]
[1748919908532,0.90272437,669.24,668.79,0.29904753]
[1748919910842,0.90194989,669.23,668.79,0.29904753]
[1748919911037,0.90272437,669.24,668.79,0.29904753]
[1748919911444,0.90194896,669.23,668.79,0.29904753]
[1748919911643,0.90272437,669.24,668.79,0.29904753]
[1748919912439,0.90165921,669.23,668.79,0.29904753]
[1748919912645,0.90272437,669.24,668.79,0.29904753]
[1748919913646,0.90158739,669.23,668.79,0.29904753]
[1748919913846,0.90272437,669.24,668.79,0.29904753]
[1748919914044,0.90127102,669.23,668.79,0.29904753]
[1748919914246,0.90272437,669.24,668.79,0.29904753]
[1748919915047,1.80251647,669.23,668.79,0.29904753]
[1748919916147,0.9012821,669.22,668.79,0.29904753]
[1748919916347,0.752,669.22,668.79,0.29904753]
[1748919917646,0.90127671,669.21,668.79,0.29904753]
[1748919918446,0.90112147,669.2,668.79,0.29904753]
[1748919918648,0.90110291,669.19,668.79,0.29904753]
[1748919918948,0.90112147,669.2,668.79,0.29904753]
[1748919919350,2.26663601,669.19,668.79,0.29904753]
[1748919919647,0.90105324,669.18,668.79,0.29904753]
[1748919919845,0.90110995,669.19,668.79,0.29904753]
[1748919920847,1.36546833,669.18,668.79,0.29904753]
[1748919921048,1.36506612,669.17,668.79,0.29904753]
[1748919921247,0.4644565,669.16,668.79,0.29904753]
[1748919921449,0.90110995,669.19,668.79,0.29904753]
[1748919921951,0.46444665,669.18,668.79,0.29904753]
[1748919922152,0.90066398,669.17,668.79,0.29904753]
[1748919922350,0.90066399,669.16,668.79,0.29904753]
[1748919922944,0.90080706,669.15,668.79,0.29904753]
[1748919923146,0.90066399,669.16,668.79,0.29904753]
[1748919923147,0.90080699,669.14,668.79,0.29904753]
[1748919923455,0.90066399,669.16,668.79,0.29904753]
[1748919924050,0.900835,669.15,668.79,0.29904753]
[1748919924252,0.90066399,669.16,668.79,0.29904753]
[1748919924454,0.90064736,669.14,668.79,0.29904753]
[1748919924653,0.90066399,669.16,668.79,0.29904753]
[1748919924850,0.46456066,669.15,668.79,0.29904753]
[1748919925053,0.46455839,669.14,668.79,0.29904753]
[1748919925247,0.46455778,669.13,668.79,0.29904753]
[1748919925448,0.90066399,669.16,668.79,0.29904753]
[1748919926346,0.46455695,669.15,668.79,0.29904753]
[1748919926547,0.90066399,669.16,668.79,0.29904753]
[1748919926750,0.90053481,669.15,668.79,0.29904753]
[1748919926947,0.46455526,669.14,668.79,0.29904753]
[1748919927254,0.90053481,669.15,668.79,0.29904753]
[1748919927449,0.90053195,669.14,668.79,0.29904753]
[1748919927750,0.46475928,669.13,668.79,0.29904753]
[1748919927948,0.90053481,669.15,668.79,0.29904753]
[1748919928653,0.46475175,669.14,668.79,0.29904753]
[1748919928855,0.90053481,669.15,668.79,0.29904753]
[1748919929257,0.90051503,669.14,668.79,0.29904753]
[1748919929554,0.26004207,669.07,668.79,0.29904753]
[1748919929757,0.90051425,669.06,668.79,0.29904753]
[1748919929959,0.90051192,669.05,668.79,0.29904753]
[1748919930156,0.90030524,669.04,668.79,0.29904753]
[1748919930358,0.26004207,669.07,668.79,0.29904753]
[1748919930952,0.9003074,669.06,668.79,0.29904753]
[1748919931860,0.9003074,669.05,668.79,0.29904753]
[1748919932659,0.900307,669.04,668.79,0.29904753]
[1748919932862,0.9003074,669.05,668.79,0.29904753]
[1748919936561,0.90027127,669.04,668.79,0.29904753]
[1748919936761,0.9003074,669.05,668.79,0.29904753]
[1748919937860,0.90021121,669.04,668.79,0.29904753]
[1748919938060,0.9003074,669.05,668.79,0.29904753]
[1748919939362,0.90020913,669.04,668.79,0.29904753]
[1748919940858,0.90020382,669.03,668.79,0.29904753]
[1748919941063,0.90020913,669.04,668.79,0.29904753]
[1748919941364,0.9003964,669.02,668.79,0.29904753]
[1748919941566,0.9003964,669.01,668.79,0.29904753]
[1748919942260,0.9003964,669.02,668.79,0.29904753]
[1748919942668,0.9004028,669.01,668.79,0.29904753]
[1748919942863,0.9003964,669.02,668.79,0.29904753]
[1748919943067,0.90040295,669.01,668.79,0.29904753]
[1748919943366,0.9003964,669.02,668.79,0.29904753]
[1748919943367,0.90040258,669.0,668.79,0.29904753]
[1748919943561,0.9003964,669.02,668.79,0.29904753]
[1748919943763,0.90039951,669.01,668.79,0.29904753]
[1748919943964,0.90039842,669.0,668.79,0.29904753]
[1748919944167,0.9003964,669.02,668.79,0.29904753]
[1748919944666,0.9004017,669.01,668.79,0.29904753]
[1748919944862,0.90040456,669.0,668.79,0.29904753]
[1748919945066,0.9003964,669.02,668.79,0.29904753]
[1748919945261,0.90037982,669.01,668.79,0.29904753]
[1748919945461,0.90037966,669.0,668.79,0.29904753]
[1748919945766,0.9003964,669.02,668.79,0.29904753]
[1748919947264,0.9006186,669.01,668.79,0.29904753]
[1748919947469,0.9003964,669.02,668.79,0.29904753]
[1748919947871,0.90073542,669.01,668.79,0.29904753]
[1748919948071,0.9007346,669.0,668.79,0.29904753]
[1748919948471,0.9003964,669.02,668.79,0.29904753]
[1748919949068,0.90034336,669.01,668.79,0.29904753]
[1748919949268,0.9003964,669.02,668.79,0.29904753]
[1748919950165,0.90035261,669.01,668.79,0.29904753]
[1748919950371,0.90034759,669.0,668.79,0.29904753]
[1748919950671,0.9003964,669.02,668.79,0.29904753]
[1748919951071,0.90032199,669.01,668.79,0.29904753]
[1748919951371,0.90032373,669.0,668.79,0.29904753]
[1748919951570,0.9003964,669.02,668.79,0.29904753]
[1748919951971,0.90032633,669.01,668.79,0.29904753]
[1748919952471,0.9003964,669.02,668.79,0.29904753]
[1748919953474,0.900285,669.01,668.79,0.29904753]
[1748919953669,0.9003964,669.02,668.79,0.29904753]
[1748919956270,0.90029299,669.01,668.79,0.29904753]
[1748919956476,0.9003964,669.02,668.79,0.29904753]
[1748919957879,0.90032239,669.01,668.79,0.29904753]
[1748919958079,0.9003964,669.02,668.79,0.29904753]
[1748919960477,0.90022336,669.01,668.79,0.29904753]
[1748919960677,0.9003964,669.02,668.79,0.29904753]
[1748919961179,0.90021765,669.01,668.79,0.29904753]
[1748919961374,0.9003964,669.02,668.79,0.29904753]
[1748919962679,0.90042466,669.01,668.79,0.29904753]
[1748919962878,0.9003964,669.02,668.79,0.29904753]
[1748919964682,0.90040535,669.01,668.79,0.29904753]
[1748919964982,0.9003964,669.02,668.79,0.29904753]
[1748919965180,0.90039883,669.01,668.79,0.29904753]
[1748919965483,0.9003964,669.02,668.79,0.29904753]
[1748919965783,0.9004055,669.01,668.79,0.29904753]
[1748919965979,0.9004053,669.0,668.79,0.29904753]
[1748919966179,0.90040396,668.99,668.79,0.29904753]
[1748919966378,0.9003964,669.02,668.79,0.29904753]
[1748919966780,0.90037716,669.01,668.79,0.29904753]
[1748919966985,0.9003964,669.02,668.79,0.29904753]
[1748919967180,0.90034625,669.01,668.79,0.29904753]
[1748919967383,0.9003964,669.02,668.79,0.29904753]
[1748919967578,0.90035616,669.01,668.79,0.29904753]
[1748919967880,0.9003522,669.0,668.79,0.29904753]
[1748919968076,0.9003964,669.02,668.79,0.29904753]
[1748919968778,0.90034602,669.01,668.79,0.29904753]
[1748919968984,0.90034602,669.0,668.79,0.29904753]
[1748919969178,0.9003964,669.02,668.79,0.29904753]
[1748919969378,0.90035236,668.99,668.79,0.29904753]
[1748919969783,0.90036948,668.98,668.79,0.29904753]
[1748919970478,0.90035405,668.97,668.79,0.29904753]
[1748919970686,0.90036948,668.98,668.79,0.29904753]
[1748919971184,0.90039526,668.97,668.79,0.29904753]
[1748919971385,0.90039668,668.96,668.79,0.29904753]
[1748919971780,0.90040193,668.95,668.79,0.29904753]
[1748919972385,0.46567416,668.94,668.79,0.29904753]
[1748919972580,0.90007165,668.93,668.79,0.29904753]
[1748919972785,0.90040193,668.95,668.79,0.29904753]
[1748919973081,0.90027311,668.94,668.79,0.29904753]
[1748919973387,0.90040193,668.95,668.79,0.29904753]
[1748919974084,0.90028267,668.94,668.79,0.29904753]
[1748919974284,0.90040193,668.95,668.79,0.29904753]
[1748919975482,0.90028995,668.94,668.79,0.29904753]
[1748919975688,0.90040193,668.95,668.79,0.29904753]
[1748919976889,0.90036534,668.94,668.79,0.29904753]
[1748919977189,0.90040193,668.95,668.79,0.29904753]
[1748919977383,0.90035684,668.94,668.79,0.29904753]
[1748919977586,0.90034786,668.93,668.79,0.29904753]
[1748919978287,0.90034029,668.92,668.79,0.29904753]
[1748919978590,0.90034022,668.91,668.79,0.29904753]
[1748919978791,0.90034029,668.92,668.79,0.29904753]
[1748919980693,1.80076729,668.91,668.79,0.29904753]
[1748919980886,0.90041831,668.9,668.79,0.29904753]
[1748919981088,1.80094786,668.89,668.79,0.29904753]
[1748919981286,0.9004554,668.88,668.79,0.29904753]
[1748919981488,0.90049246,668.89,668.79,0.29904753]
[1748919982186,0.90034083,668.88,668.79,0.29904753]
[1748919982491,0.90034355,668.87,668.79,0.29904753]
[1748919982792,0.90034104,668.86,668.79,0.29904753]
[1748919982993,0.90034083,668.88,668.79,0.29904753]
[1748919983287,0.89893322,668.87,668.79,0.29904753]
[1748919983490,0.90034083,668.88,668.79,0.29904753]
[1748919984587,2.38223546,668.88,668.79,0.29904753]
[1748919984790,0.89882538,668.87,668.79,0.29904753]
[1748919984988,1.48189463,668.85,668.79,0.29904753]
[1748919985788,1.48189463,668.82,668.79,0.29904753]
[1748919986494,0.89802744,668.81,668.79,0.29904753]
[1748919986694,1.48189463,668.82,668.79,0.29904753]
[1748919986895,0.90034083,668.88,668.79,0.29904753]
[1748919987690,0.89802453,668.87,668.79,0.29904753]
[1748919987901,0.90034083,668.88,668.79,0.29904753]
[1748919989397,0.89803454,668.87,668.79,0.29904753]
[1748919989592,0.90034083,668.88,668.79,0.29904753]
[1748919990097,0.89501873,668.87,668.79,0.29904753]
[1748919990297,0.89500746,668.86,668.79,0.29904753]
[1748919990597,0.90034083,668.88,668.79,0.29904753]
[1748919991799,0.89500388,668.87,668.79,0.29904753]
[1748919991997,0.90034083,668.88,668.79,0.29904753]
[1748919992393,0.89500603,668.87,668.79,0.29904753]
[1748919992597,0.90034083,668.88,668.79,0.29904753]
[1748919993100,0.89665113,668.87,668.79,0.29904753]
[1748919993298,0.90034083,668.88,668.79,0.29904753]
[1748919993798,0.89664877,668.87,668.79,0.29904753]
[1748919994000,0.90034083,668.88,668.79,0.29904753]
[1748919994200,0.89787507,668.87,668.79,0.29904753]
[1748919994421,0.89787222,668.86,668.79,0.29904753]
[1748919994601,0.90034083,668.88,668.79,0.29904753]
[1748919995696,0.89787282,668.87,668.79,0.29904753]
[1748919995893,0.90034083,668.88,668.79,0.29904753]
[1748919996298,1.79573907,668.87,668.79,0.29904753]
[1748919996497,0.89786303,668.87,668.79,0.29904753]
[1748919996899,0.89785799,668.86,668.79,0.29904753]
[1748919997099,0.89766082,668.85,668.79,0.29904753]
[1748919997297,0.89785799,668.86,668.79,0.29904753]
[1748919999102,0.89778738,668.85,668.79,0.29904753]
[1748919999303,0.8977845,668.84,668.79,0.29904753]
[1748919999497,0.89778805,668.83,668.79,0.29904753]
[1748919999703,0.89785799,668.86,668.79,0.29904753]
[1748919999904,0.89775311,668.85,668.79,0.29904753]
[1748920000106,0.89785799,668.86,668.79,0.29904753]
[1748920002106,0.89727848,668.85,668.79,0.29904753]
[1748920002302,0.89785799,668.86,668.79,0.29904753]
[1748920002709,0.89727935,668.85,668.79,0.29904753]
[1748920002908,0.89785799,668.86,668.79,0.29904753]
[1748920003107,0.89726389,668.84,668.79,0.29904753]
[1748920003404,0.89785799,668.86,668.79,0.29904753]
[1748920004910,0.89738802,668.85,668.79,0.29904753]
[1748920005106,0.89785799,668.86,668.79,0.29904753]
[1748920005406,1.36363348,668.85,668.79,0.29904753]
[1748920005605,0.89739407,668.84,668.79,0.29904753]
[1748920005811,0.89738446,668.83,668.79,0.29904753]
[1748920006013,0.89785799,668.86,668.79,0.29904753]
[1748920006207,1.36360564,668.85,668.79,0.29904753]
[1748920006410,0.89785799,668.86,668.79,0.29904753]
[1748920006608,1.36367866,668.85,668.79,0.29904753]
[1748920006807,0.89738326,668.84,668.79,0.29904753]
[1748920007107,0.89739255,668.83,668.79,0.29904753]
[1748920007309,0.89738326,668.84,668.79,0.29904753]
[1748920007508,0.89731247,668.82,668.79,0.29904753]
[1748920007713,0.89727061,668.81,668.79,0.29904753]
[1748920008016,0.89727061,668.8,668.79,0.29904753]
[1748920008216,0.89738326,668.84,668.79,0.29904753]
[1748920008813,0.46612868,668.83,668.79,0.29904753]
[1748920009011,0.89738326,668.84,668.79,0.29904753]
[1748920010617,0.46603978,668.83,668.79,0.29904753]
[1748920010916,0.89738326,668.84,668.79,0.29904753]
[1748920011311,0.89632608,668.83,668.79,0.29904753]
[1748920011516,0.89738326,668.84,668.79,0.29904753]
[1748920012014,0.46603637,668.83,668.79,0.29904753]
[1748920012220,0.89626344,668.82,668.79,0.29904753]
[1748920012413,0.89738326,668.84,668.79,0.29904753]
[1748920012614,0.89626517,668.83,668.79,0.29904753]
[1748920012811,0.89738326,668.84,668.79,0.29904753]
[1748920013615,0.89631057,668.83,668.79,0.29904753]
[1748920013815,0.89738326,668.84,668.79,0.29904753]
[1748920015013,0.89626078,668.83,668.79,0.29904753]
[1748920015218,0.89738326,668.84,668.79,0.29904753]
[1748920015921,0.89648966,668.83,668.79,0.29904753]
[1748920016120,1.36271334,668.82,668.79,0.29904753]
[1748920016420,0.89648053,668.82,668.79,0.29904753]
[1748920016823,0.46623533,668.81,668.79,0.29904753]
[1748920017021,0.89648546,668.8,668.79,0.29904753]
[1748920017221,0.89648053,668.82,668.79,0.29904753]
[1748920017620,0.46623513,668.81,668.79,0.29904753]
[1748920017821,1.36271812,668.8,668.79,0.29904753]
[1748920018021,0.89648053,668.82,668.79,0.29904753]
[1748920018622,0.46623544,668.81,668.79,0.29904753]
[1748920018822,0.89648053,668.82,668.79,0.29904753]
[1748920019320,1.36360562,668.81,668.0,0.26015774]
[1748920019522,0.89648053,668.82,668.02,0.29939223]
[1748920019721,0.89742708,668.81,668.02,0.29939223]
[1748920019921,0.89648053,668.82,668.02,0.29939223]
[1748920020322,0.46630638,668.81,668.02,0.29939223]
[1748920020523,0.89648053,668.82,668.02,0.29939223]
[1748920020725,0.8975355,668.81,668.02,0.29939223]
[1748920020926,0.89648053,668.82,668.02,0.29939223]
[1748920021923,0.89648053,668.82,668.05,1.11513621]
[1748920022122,1.729,668.81,668.06,0.2993743]
[1748920022430,1.959,668.8,668.06,0.2993743]
[1748920022628,3.89937236,668.8,668.06,0.2993743]
[1748920022822,1.83936828,668.79,668.06,0.2993743]
[1748920023020,1.974,668.79,668.06,0.2993743]
[1748920023424,0.89837532,668.78,668.06,0.2993743]
[1748920023623,0.89841297,668.77,668.06,0.2993743]
[1748920024229,0.89837405,668.76,668.06,0.2993743]
[1748920024428,0.89841297,668.77,668.06,0.2993743]
[1748920024827,0.89837293,668.76,668.06,0.2993743]
[1748920025027,0.89841297,668.77,668.06,0.2993743]
[1748920027529,0.89871326,668.76,668.06,0.2993743]
[1748920027728,0.89841297,668.77,668.06,0.2993743]
[1748920028123,0.89870991,668.76,668.06,0.2993743]
[1748920028326,0.89841297,668.77,668.06,0.2993743]
[1748920028927,0.89848659,668.76,668.06,0.2993743]
[1748920029129,0.89841297,668.77,668.06,0.2993743]
[1748920029929,0.89848412,668.76,668.06,0.2993743]
[1748920030232,0.89848529,668.75,668.06,0.2993743]
[1748920030426,0.89848412,668.76,668.06,1.4146181]
[1748920030628,0.89847817,668.75,668.07,1.1152438]
[1748920030828,0.89848412,668.76,668.08,0.29936534]
[1748920031525,0.89848412,668.76,668.08,1.41460914]
[1748920031725,0.89848961,668.75,668.08,0.29936534]
[1748920031930,0.89848412,668.76,668.08,0.29936534]
[1748920032529,0.89848412,668.76,668.08,1.41521723]
[1748920032730,0.89848412,668.76,668.16,1.11585189]
[1748920032933,0.89848412,668.76,668.17,0.29932502]
[1748920034532,0.89848412,668.76,668.17,1.41517691]
[1748920036128,0.89848412,668.76,668.17,0.29932502]
[1748920036525,0.89848412,668.76,668.17,1.41555206]
[1748920037529,0.89848412,668.76,668.18,1.11622704]
[1748920037730,0.89848412,668.76,668.19,0.29931606]
[1748920038528,0.89848412,668.76,668.19,1.4155431]
[1748920038833,0.89848412,668.76,668.19,0.29931606]
[1748920039235,1.172,668.75,668.19,0.29931606]
[1748920043334,0.8974458,668.74,668.19,0.29931606]
[1748920044140,0.89743739,668.73,668.19,0.29931606]
[1748920044338,0.8974458,668.74,668.19,0.29931606]
[1748920045143,0.712,668.73,668.19,0.29931606]
[1748920045443,0.89728914,668.72,668.19,0.29931606]
[1748920045638,0.712,668.73,668.19,0.29931606]
[1748920045838,0.8971768,668.72,668.19,0.29931606]
[1748920046042,0.89717823,668.71,668.19,0.29931606]
[1748920046237,0.712,668.73,668.19,0.29931606]
[1748920046643,0.8971672,668.72,668.19,0.29931606]
[1748920047342,0.89720531,668.71,668.24,1.11825502]
[1748920047539,0.8971672,668.72,668.25,0.29928918]
[1748920047838,0.8971672,668.72,668.27,1.11825502]
[1748920048045,0.8971672,668.72,668.28,0.29927575]
[1748920048642,0.89708737,668.71,668.28,0.29927575]
[1748920048943,0.8971672,668.72,668.28,0.29927575]